bitfinex/quotes_ETHUSD_20240823
["timestamp","ask_amount","ask_price","bid_price","bid_amount"]
[1724382732188,2.65137894,2641.1,2640.6,7.57387]
[1724382732391,1.52,2641.1,2640.8,3.7867]
[1724382732793,1.52,2641.1,2640.9,3.78657]
[1724382732958,1.52,2641.1,2640.9,3.88992937]
[1724382735017,2.65137894,2641.1,2640.9,0.10335937]
[1724382735300,2.65137894,2641.1,2640.7,3.78674]
[1724382735454,2.65137894,2641.1,2641.0,0.10275824]
[1724382736856,2.65137894,2641.1,2640.8,3.78671]
[1724382737064,2.65137894,2641.1,2641.0,0.10275824]
[1724382737288,2.65137894,2641.1,2640.6,3.78694]
[1724382737462,2.65137894,2641.1,2641.0,0.10275824]
[1724382737674,2.65137894,2641.1,2640.6,3.78694]
[1724382737675,6.43767894,2641.1,2640.6,3.78694]
[1724382737876,2.3632,2641.0,2640.6,5.523424]
[1724382738902,2.3632,2641.0,2640.6,9.310364]
[1724382740082,1.13137894,2640.9,2640.6,3.78694]
[1724382740730,1.13137894,2640.9,2640.6,7.57386]
[1724382740868,1.13137894,2640.9,2640.7,3.78686]
[1724382741269,2.3632,2641.0,2640.7,3.78686]
[1724382741903,2.65137894,2641.1,2640.7,3.78686]
[1724382742767,2.65137894,2641.1,2640.8,3.7867]
[1724382744067,1.52,2641.1,2640.8,0.757362]
[1724382744270,1.52,2641.1,2641.0,3.78644]
[1724382747136,1.52,2641.1,2641.0,0.10253716]
[1724382748794,3.42547894,2641.4,2641.0,3.88897716]
[1724382751910,3.42547894,2641.4,2641.0,3.78644]
[1724382752114,3.42547894,2641.4,2641.1,0.10248883]
[1724382752738,7.21134894,2641.4,2641.1,0.10248883]
[1724382756954,3.42547894,2641.4,2641.1,0.10248883]
[1724382757251,3.42547894,2641.4,2641.0,3.78635]
[1724382758116,3.42547894,2641.4,2641.1,0.10248883]
[1724382759723,1.13137894,2641.2,2641.1,0.10248883]
[1724382767973,3.10742322,2641.2,2641.1,0.10248883]
[1724382769562,1.13137894,2641.2,2641.1,0.10248883]
[1724382774441,5.84376705,2641.2,2641.1,0.10248883]
[1724382774676,2.3084,2641.1,2640.5,7.36]
[1724382774829,1.13137894,2640.6,2640.5,7.36]
[1724382775052,3.11148997,2640.6,2640.4,7.57443]
[1724382775263,3.11148997,2640.6,2640.4,3.78721]
[1724382775476,3.11148997,2640.6,2640.4,7.57443]
[1724382775832,1.98011103,2640.6,2640.5,3.78716]
[1724382776152,1.98011103,2640.7,2640.5,3.78716]
[1724382776780,1.98011103,2640.8,2640.7,3.78687]
[1724382777135,1.98011103,2640.9,2640.8,3.78673]
[1724382777569,1.98011103,2640.9,2640.8,7.67268456]
[1724382777763,1.98011103,2641.0,2640.9,3.78658]
[1724382777969,5.94641218,2641.2,2640.9,3.78658]
[1724382778272,1.97973524,2641.0,2640.9,3.78658]
[1724382778747,1.97973524,2641.0,2640.9,8.330491]
[1724382778951,3.50751218,2641.3,2641.0,3.78644]
[1724382778952,1.97973524,2641.1,2641.0,3.78644]
[1724382779337,1.97973524,2641.2,2641.0,3.78644]
[1724382779773,1.97973524,2641.2,2641.1,7.5726]
[1724382780081,1.97973524,2641.4,2641.2,3.78615]
[1724382780251,1.97973524,2641.4,2641.3,3.78601]
[1724382781169,1.97973524,2641.5,2641.4,3.78587]
[1724382781471,3.50751218,2641.8,2641.5,3.78563]
[1724382781635,1.97979236,2641.6,2641.5,3.78563]
[1724382782903,1.97936199,2641.6,2641.5,3.78563]
[1724382784290,1.97936199,2641.7,2641.5,3.78563]
[1724382786398,1.97936199,2641.7,2641.5,3.78572]
[1724382787506,1.97808218,2641.7,2641.5,3.78572]
[1724382788299,1.97808218,2641.8,2641.6,3.78557]
[1724382788500,3.49808218,2641.9,2641.6,7.57108]
[1724382788700,3.49808218,2641.9,2641.6,3.78551]
[1724382789000,3.49808218,2641.9,2641.7,3.78542]
[1724382789201,3.49808218,2641.9,2641.7,0.8562039]
[1724382790215,3.49808218,2641.9,2641.7,4.6416039]
[1724382790811,1.52,2641.9,2641.7,4.6416039]
[1724382792315,1.52,2641.9,2641.8,0.0985201]
[1724382792615,1.52,2641.9,2641.7,4.6416039]
[1724382792785,1.52,2641.9,2641.8,0.94122949]
[1724382793916,1.52,2641.9,2641.8,4.72651949]
[1724382794113,3.10842146,2642.1,2641.8,3.8838101]
[1724382794624,3.10842146,2642.1,2641.8,6.2340101]
[1724382794625,1.13137894,2642.1,2641.8,6.2340101]
[1724382794788,1.13137894,2642.1,2641.9,1.00193401]
[1724382795524,1.13137894,2642.1,2642.0,0.0985201]
[1724382795902,1.13137894,2642.1,2641.8,6.13549]
[1724382796114,1.13137894,2642.1,2641.9,0.09808515]
[1724382798037,5.76178252,2642.2,2641.9,0.09808515]
[1724382798038,1.97704252,2642.2,2641.9,0.09808515]
[1724382798200,6.89301146,2642.3,2641.9,4.88510367]
[1724382798526,6.89301146,2642.3,2641.9,1.09996367]
[1724382799393,10.67767146,2642.3,2641.9,1.09996367]
[1724382800552,6.89301146,2642.3,2641.9,1.09996367]
[1724382800692,10.67772146,2642.3,2641.9,1.09996367]
[1724382801032,3.78476,2642.2,2641.9,1.09996367]
[1724382804330,3.78476,2642.2,2641.9,0.09808515]
[1724382804954,1.13137894,2642.1,2641.9,0.09808515]
[1724382808797,1.13137894,2642.1,2641.6,2.3126]
[1724382809000,1.13137894,2642.1,2642.0,0.09808515]
[1724382809001,6.49604497,2642.1,2642.0,0.09808515]
[1724382809195,6.49604497,2642.1,2641.6,2.3126]
[1724382809631,3.78507,2642.0,2641.6,2.3126]
[1724382809835,4.91661894,2641.9,2641.7,0.09808515]
[1724382809996,7.32911894,2641.9,2641.7,0.09808515]
[1724382810199,8.90892497,2641.9,2641.4,11.14584]
[1724382810400,8.90892497,2641.9,2641.8,0.09786424]
[1724382810642,7.32911894,2641.9,2641.4,11.14584]
[1724382810837,8.90892497,2641.9,2641.8,0.09786424]
[1724382811021,7.32911894,2641.9,2641.4,11.14584]
[1724382811335,7.32911894,2641.9,2641.5,5.510156]
[1724382811643,7.32911894,2641.9,2641.5,5.60802714]
[1724382811644,4.91661894,2641.9,2641.5,5.60802714]
[1724382812842,5.36482603,2642.0,2641.6,2.2856]
[1724382813369,5.36482603,2642.0,2641.7,0.09787114]
[1724382813953,3.78502,2642.0,2641.7,0.09787114]
[1724382814251,1.57980603,2642.1,2641.7,5.05120185]
[1724382814456,6.49601497,2642.2,2641.7,5.05120185]
[1724382814625,10.28084497,2642.2,2641.7,5.05120185]
[1724382815035,1.57980603,2642.1,2641.7,5.05120185]
[1724382815614,5.36466603,2642.1,2641.7,5.05120185]
[1724382819149,1.57980603,2642.1,2641.7,5.05120185]
[1724382819353,5.36468603,2642.1,2641.7,5.05120185]
[1724382819688,1.57980603,2642.0,2641.7,5.05120185]
[1724382822381,1.57980603,2642.0,2641.7,0.09787114]
[1724382823279,1.57980603,2641.9,2641.7,0.09787114]
[1724382825067,3.78488,2642.1,2641.7,0.09787114]
[1724382828161,1.98073529,2641.8,2641.7,0.09787114]
[1724382828509,1.98073529,2641.8,2641.7,3.88331114]
[1724382828653,1.98073529,2641.8,2641.7,5.05120185]
[1724382829747,1.98073529,2641.9,2641.7,5.05120185]
[1724382830269,1.98073529,2641.8,2641.7,5.05120185]
[1724382830586,1.98073529,2641.9,2641.7,5.05120185]
[1724382830913,1.9813175,2641.9,2641.7,5.05120185]
[1724382831184,1.9813175,2641.8,2641.7,5.05120185]
[1724382835603,4.91610894,2642.2,2641.7,5.05120185]
[1724382835833,1.98238773,2641.8,2641.7,3.88331114]
[1724382835964,2.3788584,2642.0,2641.7,3.88331114]
[1724382836165,1.98240435,2641.8,2641.7,3.88331114]
[1724382836367,1.98243776,2641.8,2641.7,3.88331114]
[1724382836828,2.3788584,2642.0,2641.7,3.88331114]
[1724382837323,1.98246875,2641.8,2641.7,3.88331114]
[1724382837521,2.3788584,2642.0,2641.7,5.05120185]
[1724382839062,1.98248952,2641.8,2641.7,5.05120185]
[1724382839780,2.3788584,2642.0,2641.7,5.05120185]
[1724382840092,1.98250156,2641.8,2641.7,5.05120185]
[1724382840466,1.98095071,2641.8,2641.7,5.05120185]
[1724382841117,2.3788584,2642.0,2641.7,5.05120185]
[1724382844511,2.3788584,2642.0,2641.8,3.78527]
[1724382844816,2.3788584,2642.0,2641.9,0.09776761]
[1724382847609,3.51023734,2642.0,2641.9,0.09776761]
[1724382847909,9.99562374,2642.0,2641.9,0.09776761]
[1724382848083,6.0891,2641.9,2641.4,11.14577]
[1724382848284,1.98246481,2641.5,2641.4,13.4392549]
[1724382849276,1.98246481,2641.6,2641.5,3.78572]
[1724382852088,1.98246481,2641.6,2641.5,3.88348761]
[1724382852987,1.98193935,2641.6,2641.5,0.09776761]
[1724382853186,1.98193935,2641.6,2641.5,3.88348761]
[1724382854474,1.98193935,2641.6,2641.5,7.66920761]
[1724382855411,1.13137894,2641.8,2641.6,3.78558]
[1724382855779,1.98184574,2641.7,2641.6,3.78558]
[1724382857639,1.98182766,2641.7,2641.6,3.78558]
[1724382858196,1.98182766,2641.7,2641.6,12.48811894]
[1724382858401,1.58569093,2641.8,2641.7,6.27754]
[1724382858736,1.58569093,2642.0,2641.8,3.78529]
[1724382858939,1.58569093,2642.0,2641.9,11.35545]
[1724382859144,1.58569093,2642.1,2641.9,6.26025]
[1724382859437,1.58569093,2642.2,2642.1,7.56972]
[1724382859620,1.98182766,2642.4,2642.3,3.78458]
[1724382859827,1.98182766,2642.4,2642.3,7.56916]
[1724382860524,1.98049054,2642.5,2642.4,3.78443]
[1724382862142,2.98049054,2642.6,2642.4,3.78443]
[1724382862301,2.9798648,2642.6,2642.4,3.78443]
[1724382864322,1.0,2642.6,2642.4,3.78443]
[1724382865253,1.0,2642.6,2642.4,4.541331]
[1724382867060,1.0,2642.6,2642.5,0.09680157]
[1724382868229,1.0,2642.6,2642.5,3.88109157]
[1724382869527,1.0,2642.6,2642.5,7.66538157]
[1724382871727,1.0,2642.6,2642.5,0.09680157]
[1724382871980,1.0,2642.6,2642.5,1.17991883]
[1724382872258,1.0,2642.6,2642.5,3.88109157]
[1724382879365,1.0,2642.6,2642.5,7.66538157]
[1724382886480,1.0,2642.6,2642.5,11.44967157]
[1724382887046,1.0,2642.6,2642.5,12.58105051]
[1724382902072,1.0,2642.6,2642.5,8.79676051]
[1724382902279,1.0,2642.6,2642.5,10.29687856]
[1724382905608,1.0,2642.6,2642.5,9.16549962]
[1724382907833,1.0,2642.6,2642.5,10.29687856]
[1724382908237,1.0,2642.6,2642.5,14.08116856]
[1724382909160,4.41969606,2643.0,2642.9,3.78372]
[1724382909621,4.41969606,2643.0,2642.9,3.87961809]
[1724382909821,4.41969606,2643.0,2642.9,4.6459699]
[1724382910731,2.4384,2643.0,2642.9,4.6459699]
[1724382911111,1.98129606,2643.1,2643.0,3.78357]
[1724382911345,1.98129606,2643.1,2642.9,4.6459399]
[1724382911545,1.98129606,2643.1,2643.0,3.87931983]
[1724382912452,2.4452,2643.2,2643.0,0.09584983]
[1724382912808,2.3779684,2643.2,2642.8,3.78379]
[1724382913014,1.98171671,2643.0,2642.9,0.09584983]
[1724382913211,1.981719,2643.0,2642.9,0.09584983]
[1724382913537,2.4452,2643.1,2642.9,0.09584983]
[1724382914643,3.78322,2643.3,2643.2,0.8560316]
[1724382915931,7.56643,2643.3,2643.2,0.8560316]
[1724382916261,11.34964,2643.3,2643.2,0.95188143]
[1724382916444,15.1767777,2643.3,2643.2,0.95188143]
[1724382916744,15.1767777,2643.3,2643.2,0.8560316]
[1724382917120,14.6267777,2643.3,2643.2,0.8560316]
[1724382917334,8.69779894,2643.3,2643.2,0.8560316]
[1724382917717,11.02819894,2643.3,2643.2,0.8560316]
[1724382920316,3.78353,2643.1,2642.6,3.78414]
[1724382920536,1.98164279,2642.7,2642.6,3.78414]
[1724382920930,1.98164279,2642.7,2642.5,3.78429]
[1724382921269,1.98164279,2642.7,2642.5,4.54116]
[1724382921573,1.98164279,2642.6,2642.5,0.75687]
[1724382921775,1.98164279,2642.6,2642.4,3.78435]
[1724382921959,1.98164279,2642.6,2642.4,7.56871]
[1724382922131,1.98164279,2642.6,2642.4,3.78435]
[1724382922334,1.98164279,2642.6,2642.5,3.78429]
[1724382922658,1.98164279,2642.7,2642.5,3.78429]
[1724382922859,1.98164279,2642.7,2642.5,4.541154]
[1724382924077,1.98164279,2642.7,2642.6,3.78415]
[1724382924235,3.11302173,2642.8,2642.6,3.78415]
[1724382924440,1.98164279,2642.8,2642.6,3.78415]
[1724382924658,1.98164279,2642.8,2642.6,8.4006864]
[1724382924873,1.98164279,2642.8,2642.6,4.6166064]
[1724382925917,1.12764279,2642.8,2642.6,4.6166064]
[1724382926319,1.98195102,2642.8,2642.6,4.6166064]
[1724382927265,1.98195102,2642.8,2642.7,0.08659993]
[1724382931396,1.98201111,2642.8,2642.7,0.08659993]
[1724382931753,13.41074017,2642.8,2642.7,0.08659993]
[1724382932019,13.41074017,2642.8,2642.1,11.14477]
[1724382932020,2.3333,2642.6,2642.1,11.14477]
[1724382932166,1.9817441,2642.4,2642.2,0.08675823]
[1724382933483,3.11312304,2642.5,2642.2,0.08675823]
[1724382933703,2.4692,2642.3,2642.2,0.08675823]
[1724382933887,3.60057894,2642.3,2642.2,0.08675823]
[1724382934224,11.16987894,2642.3,2642.2,0.08675823]
[1724382934369,2.4837,2642.0,2641.6,3.78547]
[1724382934558,2.4837,2642.0,2641.7,1.20130523]
[1724382934559,1.13137894,2641.9,2641.7,1.20130523]
[1724382935301,1.13137894,2641.9,2641.7,0.08675823]
[1724382935302,6.89559252,2641.9,2641.7,0.08675823]
[1724382935502,6.8943389,2641.9,2641.7,0.08675823]
[1724382935798,6.8943389,2641.9,2641.8,0.08675823]
[1724382935799,3.1091089,2641.9,2641.8,0.08675823]
[1724382936010,3.1091089,2641.9,2641.4,7.57157]
[1724382936162,3.1091089,2641.9,2641.8,0.08675823]
[1724382936367,1.13137894,2641.9,2641.4,7.57157]
[1724382936566,1.13137894,2641.9,2641.5,0.08675823]
[1724382936791,1.13137894,2641.9,2641.5,3.87237823]
[1724382936967,4.46142996,2642.0,2641.5,3.87237823]
[1724382937162,6.8939189,2642.2,2641.7,7.57078]
[1724382937396,9.3838189,2642.2,2641.8,0.08752963]
[1724382937619,7.40608894,2642.2,2641.7,7.57071]
[1724382937820,3.62127894,2642.2,2641.9,0.08752963]
[1724382937971,3.1091089,2642.4,2642.0,3.78499]
[1724382938169,1.13137894,2642.4,2642.0,3.78499]
[1724382938422,1.13137894,2642.4,2642.1,0.08752963]
[1724382939722,8.12978996,2642.5,2642.1,0.08752963]
[1724382939882,1.13137894,2642.4,2642.1,0.08752963]
[1724382943002,4.91581894,2642.4,2642.1,0.08752963]
[1724382943486,3.78458,2642.3,2642.1,0.08752963]
[1724382943762,1.13137894,2642.2,2641.8,3.78519]
[1724382943930,1.13137894,2642.2,2641.8,4.58098178]
[1724382944963,1.13137894,2642.2,2641.8,8.36620178]
[1724382945823,1.13137894,2642.2,2641.9,3.78515]
[1724382952872,1.13137894,2642.4,2641.9,6.13805]
[1724382953031,1.13137894,2642.4,2642.0,4.47828418]
[1724382953368,1.52,2642.7,2642.3,3.78447]
[1724382953574,1.52,2642.7,2642.4,3.78435]
[1724382953742,6.03484,2643.0,2642.6,3.78415]
[1724382953743,1.97388838,2643.0,2642.6,3.78415]
[1724382954071,3.78338,2643.2,2642.7,3.784]
[1724382954369,6.88934679,2643.2,2642.7,3.784]
[1724382954554,4.91475894,2643.2,2642.8,2.3544]
[1724382954759,1.13137894,2643.2,2642.8,6.13824]
[1724382954961,1.13137894,2643.2,2642.8,2.3544]
[1724382955166,4.91467894,2643.2,2642.9,0.08758461]
[1724382957341,4.91467894,2643.2,2642.7,4.27553789]
[1724382957542,4.91467894,2643.2,2643.0,0.08758461]
[1724382957786,4.91467894,2643.2,2642.7,4.27546789]
[1724382958007,4.91467894,2643.2,2643.1,0.08758461]
[1724382958301,4.91467894,2643.2,2642.8,0.08758461]
[1724382958600,4.91467894,2643.2,2642.7,7.56786]
[1724382958881,4.91467894,2643.2,2642.9,0.08758461]
[1724382959039,4.91467894,2643.2,2642.7,8.569676]
[1724382959388,4.91467894,2643.2,2643.0,0.08758461]
[1724382959594,4.91467894,2643.2,2642.7,8.569676]
[1724382959774,4.91467894,2643.2,2643.1,0.08758461]
[1724382960443,4.91467894,2643.2,2642.7,8.569676]
[1724382960645,1.13137894,2643.2,2643.1,0.08696481]
[1724382960963,1.13137894,2643.2,2642.8,4.8857576]
[1724382961182,1.13137894,2643.2,2643.1,0.08696481]
[1724382961687,1.13137894,2643.2,2642.8,3.78376]
[1724382961897,1.13137894,2643.2,2643.1,0.08696481]
[1724382962090,1.13137894,2643.2,2642.8,3.78376]
[1724382962236,1.13137894,2643.2,2643.1,0.08696481]
[1724382962450,1.13137894,2643.2,2642.8,3.78376]
[1724382962651,1.13137894,2643.2,2643.1,0.08696481]
[1724382962948,1.13137894,2643.2,2642.8,3.78376]
[1724382963150,1.13137894,2643.2,2643.1,0.08696481]
[1724382963373,1.13137894,2643.2,2642.8,3.78376]
[1724382963577,1.13137894,2643.2,2643.1,0.08696481]
[1724382963759,1.13137894,2643.2,2642.8,3.78376]
[1724382963963,1.13137894,2643.2,2643.1,0.08696481]
[1724382964482,1.13137894,2643.2,2642.8,3.78376]
[1724382964683,1.13137894,2643.2,2643.1,0.08696481]
[1724382964878,1.13137894,2643.2,2642.8,3.78376]
[1724382965082,1.13137894,2643.2,2643.1,0.08696481]
[1724382965381,1.13137894,2643.2,2642.8,3.78376]
[1724382965745,1.13137894,2643.2,2642.9,0.08696481]
[1724382967787,4.91467894,2643.2,2642.9,0.08696481]
[1724382972916,1.13137894,2643.0,2642.9,0.08696481]
[1724382973206,3.78373,2642.9,2642.4,13.57422]
[1724382973414,3.78373,2642.9,2642.4,16.555104]
[1724382974007,4.91495894,2643.0,2642.5,3.78424]
[1724382976274,1.13137894,2642.6,2642.4,11.14435]
[1724382976610,1.13137894,2642.8,2642.4,3.78435]
[1724382976790,1.13137894,2642.8,2642.5,3.78429]
[1724382979691,5.75998455,2643.0,2642.5,3.78429]
[1724382979918,4.91495894,2643.0,2642.5,3.78429]
[1724382980916,4.91495894,2643.0,2642.6,0.0867376]
[1724382981092,1.13137894,2642.8,2642.6,0.0867376]
[1724382990419,1.13137894,2642.8,2642.4,3.78434]
[1724382990611,3.11021247,2642.8,2642.7,0.08679954]
[1724382990821,3.11021247,2642.8,2642.4,7.5687]
[1724382991025,3.11021247,2642.8,2642.7,0.08679954]
[1724382991209,3.11021247,2642.8,2642.4,3.78434]
[1724382991523,3.11021247,2642.8,2642.5,0.08679954]
[1724382993519,3.11021247,2642.8,2642.5,3.87107954]
[1724382994828,3.11021247,2642.8,2642.6,2.3615]
[1724382994829,1.13137894,2642.8,2642.6,2.3615]
[1724382995242,1.13137894,2642.8,2642.7,3.87079954]
[1724382995642,3.11183946,2642.8,2642.7,3.87079954]
[1724382995848,1.13137894,2642.8,2642.7,3.87079954]
[1724382996731,1.98046052,2642.9,2642.7,3.87079954]
[1724382996939,1.98046052,2642.8,2642.7,3.87079954]
[1724382997139,1.98046052,2642.9,2642.7,3.87079954]
[1724382997365,1.98046052,2642.8,2642.7,3.87079954]
[1724382998320,1.98046052,2642.8,2642.7,4.94899569]
[1724382999621,1.98356618,2642.8,2642.7,4.94899569]
[1724383004331,1.98440489,2642.8,2642.7,4.94899569]
[1724383005246,1.98440489,2642.8,2642.7,1.16499569]
[1724383006153,1.98448416,2642.8,2642.7,1.16499569]
[1724383006330,1.98448416,2642.8,2642.7,4.94899569]
[1724383007456,1.98448416,2642.8,2642.7,0.08679954]
[1724383007457,1.98446527,2642.8,2642.7,0.08679954]
[1724383007669,5.77483727,2643.0,2642.7,0.08679954]
[1724383008154,2.38135833,2642.9,2642.7,0.08679954]
[1724383008348,5.77483727,2643.0,2642.7,0.08679954]
[1724383008648,3.51273727,2643.0,2642.7,0.08679954]
[1724383008850,1.98450585,2642.8,2642.7,0.08679954]
[1724383009088,3.51273727,2643.0,2642.7,0.08679954]
[1724383011071,1.98476107,2642.8,2642.7,0.08679954]
[1724383011310,1.98484113,2642.8,2642.7,0.08679954]
[1724383011581,1.98484113,2642.8,2642.7,3.87079954]
[1724383011787,1.98484113,2642.8,2642.7,6.26469954]
[1724383011988,1.98484113,2642.8,2642.7,7.26957549]
[1724383013814,1.98499242,2642.8,2642.7,7.26957549]
[1724383014162,2.3819909,2643.0,2642.7,7.26957549]
[1724383014355,2.3819909,2643.0,2642.7,6.26469954]
[1724383015705,1.98518677,2642.8,2642.7,6.26469954]
[1724383015863,2.3819909,2643.0,2642.7,6.26469954]
[1724383016065,1.98551028,2642.8,2642.7,6.26469954]
[1724383016388,2.3819909,2643.0,2642.7,6.26469954]
[1724383016964,1.98580983,2642.8,2642.7,6.26469954]
[1724383017262,2.3819909,2643.0,2642.7,6.26469954]
[1724383018464,1.13137894,2643.1,2642.7,6.26469954]
[1724383018840,2.38347233,2643.0,2642.7,6.26469954]
[1724383020774,2.38347233,2643.0,2642.7,3.87079954]
[1724383020973,2.38347233,2642.9,2642.7,3.87079954]
[1724383021175,3.51485127,2642.9,2642.7,3.87079954]
[1724383021576,1.13137894,2642.9,2642.7,3.87079954]
[1724383021777,2.3833094,2643.0,2642.7,7.65479954]
[1724383022109,2.3833094,2643.1,2642.9,3.78363]
[1724383022712,2.3833094,2643.1,2643.0,0.08657239]
[1724383023100,2.3833094,2643.2,2643.0,3.87014239]
[1724383024495,2.3833094,2643.2,2643.1,2.3957]
[1724383024905,2.3833094,2643.2,2643.1,2.48227239]
[1724383025106,1.13137894,2643.4,2643.1,2.48227239]
[1724383025107,2.3833094,2643.3,2643.1,2.48227239]
[1724383026527,2.38225913,2643.3,2643.1,2.48227239]
[1724383026737,1.13137894,2643.2,2643.1,0.08657239]
[1724383026956,3.51363807,2643.2,2643.1,0.08657239]
[1724383027167,1.13137894,2643.2,2643.1,0.08657239]
[1724383027499,3.51363807,2643.2,2642.9,2.4459]
[1724383027736,11.08030807,2643.2,2642.7,7.26206995]
[1724383028039,1.98473751,2642.9,2642.6,11.1441]
[1724383028334,1.98473751,2642.8,2642.6,11.1441]
[1724383028506,1.98473751,2642.8,2642.6,14.128855]
[1724383028928,1.98473751,2642.8,2642.6,17.912955]
[1724383029435,1.98473751,2642.8,2642.7,3.784]
[1724383030451,1.98473751,2642.8,2642.6,7.36]
[1724383030611,1.98482828,2642.7,2642.6,7.36]
[1724383031137,1.9848565,2642.7,2642.6,7.36]
[1724383031352,1.9848565,2642.7,2642.6,11.14415]
[1724383031936,3.11623544,2642.8,2642.6,11.14415]
[1724383032241,3.11623544,2642.8,2642.6,11.23070174]
[1724383032757,1.9848565,2642.8,2642.6,11.23070174]
[1724383032947,1.9848565,2642.8,2642.6,15.01478174]
[1724383033327,1.9848565,2642.8,2642.6,7.65478174]
[1724383033523,1.9848565,2642.7,2642.6,3.87063174]
[1724383034546,1.9848565,2642.7,2642.6,0.08655174]
[1724383034727,1.13137894,2642.8,2642.6,0.08655174]
[1724383034923,1.98530407,2642.7,2642.6,0.08655174]
[1724383035190,1.98532989,2642.7,2642.6,0.08655174]
[1724383035463,1.98536408,2642.7,2642.6,0.08655174]
[1724383035664,1.98542952,2642.7,2642.6,0.08655174]
[1724383035841,1.13137894,2642.8,2642.6,0.08655174]
[1724383036046,1.98544938,2642.7,2642.6,0.08655174]
[1724383036275,1.13137894,2642.8,2642.6,0.08655174]
[1724383036495,1.98543733,2642.7,2642.6,0.08655174]
[1724383036657,1.98544013,2642.7,2642.6,0.08655174]
[1724383037680,1.98544013,2642.7,2642.6,3.87070174]
[1724383038643,1.98562496,2642.7,2642.6,3.87070174]
[1724383038887,1.13137894,2642.8,2642.6,3.87070174]
[1724383039177,1.98563049,2642.7,2642.6,3.87070174]
[1724383039385,1.13137894,2642.8,2642.6,3.87070174]
[1724383039588,1.98582014,2642.7,2642.6,3.87070174]
[1724383040080,1.98582422,2642.7,2642.6,3.87070174]
[1724383040458,1.13137894,2642.8,2642.6,3.87070174]
[1724383040983,1.98598831,2642.7,2642.6,3.87070174]
[1724383041157,1.13137894,2642.8,2642.6,3.87070174]
[1724383041353,1.13137894,2642.8,2642.6,7.65478174]
[1724383041671,1.13137894,2642.8,2642.6,3.87063174]
[1724383043001,1.13137894,2642.8,2642.6,7.65469174]
[1724383043218,1.13137894,2642.8,2642.7,3.784]
[1724383043502,1.13137894,2642.8,2642.6,3.87061174]
[1724383043857,1.13137894,2642.8,2642.6,7.65468174]
[1724383044103,1.13137894,2642.8,2642.6,3.87061174]
[1724383044250,1.98587958,2642.7,2642.6,3.87061174]
[1724383044647,1.13137894,2642.8,2642.6,3.87061174]
[1724383047060,1.98567025,2642.7,2642.6,3.87061174]
[1724383047282,1.13137894,2642.8,2642.6,3.87061174]
[1724383049192,1.98565558,2642.7,2642.6,3.87061174]
[1724383051184,1.98565558,2642.7,2642.6,7.65476174]
[1724383054403,1.13137894,2642.8,2642.6,7.65476174]
[1724383054603,1.98562579,2642.7,2642.6,3.87061174]
[1724383054936,1.13137894,2642.8,2642.6,7.65466174]
[1724383055089,1.98586386,2642.7,2642.6,7.65466174]
[1724383055291,1.13137894,2642.8,2642.6,7.65466174]
[1724383055491,1.98582029,2642.7,2642.6,7.65466174]
[1724383056112,1.98582029,2642.7,2642.6,3.87060174]
[1724383058443,1.98582029,2642.7,2642.6,10.15075174]
[1724383059358,3.51412989,2643.0,2642.7,3.78394]
[1724383059359,3.51439083,2643.0,2642.7,3.78394]
[1724383059662,3.51439083,2643.0,2642.8,0.08657239]
[1724383059954,3.51439083,2643.0,2642.7,3.78394]
[1724383060106,3.51439083,2643.0,2642.8,0.08657239]
[1724383060305,3.51439083,2643.0,2642.7,3.78394]
[1724383060523,1.98593727,2642.8,2642.7,3.78394]
[1724383061650,3.51439083,2643.0,2642.7,3.78394]
[1724383062023,3.51439083,2643.0,2642.8,0.08655862]
[1724383062368,3.51439083,2643.0,2642.7,3.78394]
[1724383062549,1.98570847,2642.8,2642.7,3.78394]
[1724383063612,3.51439083,2643.0,2642.7,3.78394]
[1724383063946,1.98575763,2642.8,2642.7,3.78394]
[1724383066760,3.51428809,2643.0,2642.7,3.78394]
[1724383066955,1.98563341,2642.8,2642.7,3.78394]
[1724383067137,3.51428809,2643.0,2642.7,3.78394]
[1724383067382,1.9856299,2642.8,2642.7,3.78394]
[1724383067667,1.98564053,2642.8,2642.7,3.78394]
[1724383068385,3.51414758,2643.0,2642.7,3.78394]
[1724383068530,1.98571487,2642.8,2642.7,3.78394]
[1724383068725,3.51426785,2643.0,2642.7,3.78394]
[1724383069104,1.98575118,2642.8,2642.7,3.78394]
[1724383069383,3.51426785,2643.0,2642.7,3.78394]
[1724383072469,2.38288891,2642.9,2642.7,3.78394]
[1724383073471,2.38435023,2642.9,2642.7,3.78394]
[1724383074470,3.51572917,2643.0,2642.7,3.78394]
[1724383076097,2.38435023,2642.9,2642.7,3.78394]
[1724383076964,2.38435023,2642.9,2642.8,0.08655861]
[1724383077149,2.38435023,2642.9,2642.7,3.78394]
[1724383077350,2.38435023,2642.9,2642.8,0.08655861]
[1724383077551,2.38435023,2642.9,2642.7,3.78394]
[1724383077776,2.38435023,2642.9,2642.8,0.08655861]
[1724383078054,2.38435023,2642.9,2642.7,3.78394]
[1724383078265,2.38429454,2642.9,2642.7,3.78394]
[1724383078568,2.38429454,2642.9,2642.8,0.08655861]
[1724383078779,2.38429454,2642.9,2642.7,3.78394]
[1724383079093,2.38429454,2642.9,2642.8,0.08655861]
[1724383079456,3.51567348,2643.0,2642.7,3.78394]
[1724383079651,2.38429454,2642.9,2642.7,3.78394]
[1724383079865,2.38429454,2642.9,2642.8,0.08655861]
[1724383080202,2.38429454,2642.9,2642.7,3.78394]
[1724383080366,2.38429454,2642.9,2642.8,0.08655861]
[1724383080687,2.38429454,2642.9,2642.7,3.78394]
[1724383080851,2.38429454,2642.9,2642.8,0.08655861]
[1724383081257,1.13137894,2643.0,2642.9,3.78372]
[1724383081258,2.38429454,2643.0,2642.9,3.78372]
[1724383081693,2.38422258,2643.0,2642.9,3.78372]
[1724383081858,2.38422258,2643.0,2642.9,3.86739332]
[1724383083271,2.38422258,2643.1,2643.0,3.78357]
[1724383083473,2.38422258,2643.3,2643.2,3.78329]
[1724383083679,2.38422258,2643.5,2643.3,9.92068]
[1724383083920,2.38422258,2643.8,2643.6,6.13712]
[1724383084229,2.38422258,2644.1,2643.8,3.78243]
[1724383084427,1.98507375,2643.9,2643.7,7.64868957]
[1724383084625,1.98507375,2643.9,2643.7,7.56503]
[1724383084916,1.98507375,2643.9,2643.8,0.08365957]
[1724383085417,1.98507375,2644.0,2643.7,3.78246]
[1724383085580,1.98507375,2644.0,2643.8,0.08365957]
[1724383085779,1.98507375,2644.0,2643.7,3.78246]
[1724383086007,1.98507375,2644.0,2643.8,0.08365957]
[1724383086209,1.98350354,2644.0,2643.7,3.78246]
[1724383086421,1.98350354,2644.0,2643.8,0.08365957]
[1724383086920,1.98350354,2644.0,2643.7,3.78246]
[1724383087121,1.98350354,2644.0,2643.9,0.08365957]